[Event "44th Chess Olympiad Open 2022"]
[Site "Chennai"]
[Date "2022.07.30"]
[Round "2.37"]
[White "Juarez Flores, Carlos A."]
[Black "Escalante Ramirez, Brian Sebasti"]
[Result "1-0"]
[ECO "E01"]
[WhiteElo "2335"]
[BlackElo "2496"]
[Annotator "TA"]
[PlyCount "85"]
[EventDate "2022.07.29"]
[EventType "team-tourn"]
[EventCountry "IND"]
[SourceTitle "playchess.com"]
[Source "ChessBase"]
[SourceQuality "1"]
[WhiteTeam "Guatemala"]
[BlackTeam "Peru"]
[WhiteTeamCountry "GUA"]
[BlackTeamCountry "PER"]
[TimeControl "40/5400+30:1800+30"]

{[%evp 16,85,0,-24,-15,-21,-10,-12,-8,-16,-16,-18,-23,-20,77,61,77,75,74,85,101,100,97,99,104,102,103,81,79,83,87,74,85,81,89,77,91,68,162,139,168,72,218,132,118,123,397,50,29972,29973,5277,705,736,732,697,648,652,423,575,231,313,312,1023,1007,29983,29984,29989,29990,29990,29991,29991,29992]} 1. d4 {[%emt 0:00:03]} e6 {[%emt 0:00:40]} 2. Nf3 {[%emt 0:00:41]} Nf6 {[%emt 0:00:14]} 3. g3 {[%emt 0:00:54]} c5 {[%emt 0:00:23]} 4. c4 {[%emt 0:00:17]} cxd4 {[%emt 0:02:30]} 5. Nxd4 {[%emt 0:00:22]} d5 {[%emt 0:00:03][%cal Bd7d5,Bd5d4,Bd4d3][%mdl 32]} 6. Bg2 {[%emt 0:00:32]} e5 {[%emt 0:00:22]} 7. Nc2 {[%emt 0:03:11]} d4 {[%emt 0:08:58]} 8. O-O {[%emt 0:02:13]} Nc6 {[%emt 0:00:18]} 9. e3 {[%emt 0:01:51]} d3 {[%emt 0:07:53] White must now prevent ...Bg4. E01: Catalan: Early deviations.} 10. Ne1 $1 {[%emt 0:00:29]} e4 {[%emt 0:00:58]} 11. Nc3 {[%emt 0:13:32]} Bb4 {[%emt 0:01:03] aiming for ...Bxc3. The position is equal.} 12. Bd2 {[%emt 0:12:12]} Bg4 {[%emt 0:01:56]} 13. f3 $1 {[%emt 0:01:19]} exf3 {[%emt 0:00:07]} 14. Bxf3 {[%emt 0:00:25] [#]} Bh3 $146 {[%emt 0:01:19]} (14... Bxf3 $11 15. Qxf3 O-O) ({Predecessor:} 14... Bxf3 15. Nxf3 O-O 16. a3 Be7 17. b4 Qd7 18. Qb3 Rad8 19. Rad1 Rfe8 20. Bc1 Bf8 {1-0 (59) Dzyuban,O-Kishnev,S (2260) Barnaul 1984}) 15. Rf2 $1 $16 {[%emt 0:04:23]} O-O {[%emt 0:01:07]} 16. Nd5 {[%emt 0:01:50]} Nxd5 {[%emt 0:11:34]} 17. Bxd5 {[%emt 0:07:52]} Be6 {[%emt 0:06:43]} 18. Bxb4 $1 {[%emt 0:06:48]} ({But not} 18. Nxd3 $6 Bxd5 19. Nxb4 (19. cxd5 Bxd2 20. Rxd2 Qxd5 $15) 19... Bxc4 $11) 18... Nxb4 {[%emt 0:01:18]} 19. e4 {[%emt 0:00:04]} Bxd5 {[%emt 0:05:32]} 20. exd5 {[%emt 0:06:40]} b5 {[%emt 0:08:24]} 21. Nxd3 {[%emt 0:00:40]} (21. Qd2 {is more complex.} Na6 22. Nxd3 bxc4 23. Ne5) 21... Nxd3 {[%emt 0:00:38]} 22. Qxd3 {[%emt 0:00:02] Threatens to win with c5.} bxc4 {[%emt 0:00:15]} 23. Qxc4 {[%emt 0:00:02]} Qb6 {[%emt 0:00:28]} 24. Rd1 {[%emt 0:00:23]} Rad8 {[%emt 0:08:16]} 25. Qd4 $36 {[%emt 0:02:40][%mdl 2048] White is really pushing.} Qa6 {[%emt 0:00:29]} 26. d6 {[%emt 0:03:38][%cal Bd5d6,Bd6d7][%mdl 32] And now d7 would win.} Qxa2 {[%emt 0:00:27]} ({Better is} 26... Rd7 $1 $14) 27. d7 {[%emt 0:00:12]} Qb3 {[%emt 0:11:05]} 28. Ra1 {[%emt 0:06:35]} (28. Re1 $18 {is more deadly.}) 28... Rb8 {[%emt 0:13:37]} (28... Qe6 $16) 29. Rxa7 {[%emt 0:01:45] Hoping for Ra3.} Rfd8 {[%emt 0:00:01]} 30. Re2 {[%emt 0:04:13] Strongly threatening Ra1.} h5 $2 {[%emt 0:01:11][%mdl 8192]} (30... Qb5 $16 {was called for.} 31. Rc2 f6) 31. Ra5 $2 {[%emt 0:01:46]} ({White should try} 31. Ra3 $18 Qb5 32. Re7) 31... Qf3 {[%emt 0:02:12][%mdl 8192] [#]} (31... Rxd7 $14 32. Qxd7 Qb6+ 33. Rf2 Qxa5) 32. Rg5 $1 {[%emt 0:03:54][%csl Gg5][%cal Rd4g7]} g6 {[%emt 0:02:19] [#]} (32... f6 33. Re7) 33. Rge5 {[%emt 0:00:11]} (33. Re6 $142 $3 {[%mdl 512]} Qg4 34. Rxg4 hxg4 35. Re7) 33... Qc6 {[%emt 0:00:02]} 34. Re7 {[%emt 0:01:33]} Rf8 {[%emt 0:00:38]} 35. b4 {[%emt 0:02:41]} Ra8 {[%emt 0:00:51]} 36. Qe4 {[%emt 0:02:02]} Ra1+ {[%emt 0:01:44]} 37. Re1 {[%emt 0:04:33] Active counter play!} (37. Kg2 $142 Qxe4+ 38. R2xe4) 37... Qb6+ $18 {[%emt 0:00:20]} 38. Kh1 $1 {[%emt 0:00:36]} Ra2 {[%emt 0:02:48]} (38... Rxe1+ 39. Qxe1 Qd4) 39. Re8 {[%emt 0:00:26] White threatens Qd5 and mate.} Rd2 {[%emt 0:00:02] [#] Prevents Qd5.} 40. Qa8 $1 {[%emt 0:01:40] White mates.} ({Weaker is} 40. Rxf8+ Kxf8 41. Re2 Rd1+ 42. Re1 Rxe1+ 43. Qxe1 Qc6+ 44. Kg1 Qxd7 $11) 40... Qf2 {[%emt 0:01:13]} 41. Rxf8+ {[%emt 0:30:08]} Kg7 {[%emt 0:03:18]} 42. Rg8+ {[%emt 0:00:00]} Kh6 {[%emt 0:00:04]} 43. Qf8+ {[%emt 0:00:00] Weighted Error Value: White=0.45/Black=0.72} 1-0

[Event "44th Chess Olympiad Open 2022"]
[Site "Chennai"]
[Date "2022.07.30"]
[Round "2.40"]
[White "Kazhgaleyev, Murtas"]
[Black "Karimov, Alisher"]
[Result "0-1"]
[ECO "E28"]
[WhiteElo "2536"]
[BlackElo "2234"]
[Annotator "TA"]
[PlyCount "54"]
[EventDate "2022.07.29"]
[EventType "team-tourn"]
[EventCountry "IND"]
[SourceTitle "playchess.com"]
[Source "ChessBase"]
[SourceQuality "1"]
[WhiteTeam "Kazakhstan"]
[BlackTeam "Tajikistan"]
[WhiteTeamCountry "KAZ"]
[BlackTeamCountry "TJK"]
[TimeControl "40/5400+30:1800+30"]

{[%evp 16,54,-16,-24,-12,-31,0,-13,-32,-132,-134,-211,-202,-188,-214,-189,-96,-129,-72,-45,-45,-183,-195,-157,-113,-601,-586,-581,-580,-560,-581,-751,-654,-1152,-793,-2333,-2274,-29996,-29997,-29997,-29998]} 1. d4 {[%emt 0:00:04]} Nf6 {[%emt 0:00:13]} 2. c4 {[%emt 0:00:06]} e6 {[%emt 0:00:09]} 3. Nc3 {[%emt 0:00:05]} Bb4 {[%emt 0:00:20]} 4. e3 {[%emt 0:00:05]} O-O {[%emt 0:00:21]} 5. a3 {[%emt 0:00:04]} Bxc3+ {[%emt 0:00:35]} 6. bxc3 {[%emt 0:00:06]} d6 {[%emt 0:00:17]} 7. Bd3 {[%emt 0:00:21]} e5 {[%emt 0:00:45]} 8. Ne2 {[%emt 0:00:36]} e4 {[%emt 0:00:56]} 9. Bb1 {[%emt 0:00:05]} Be6 {[%emt 0:00:38] E28: Nimzo-Indian: Sämisch: 5...0-0 6 e3.} 10. Ba2 {[%emt 0:01:42] [#]} Re8 $146 {[%emt 0:06:26]} ({Predecessor:} 10... Nbd7 11. Ng3 Nb6 12. Qe2 c5 13. Bb2 Rc8 14. Rc1 Re8 15. O-O Bg4 16. Qd2 h5 17. f3 exf3 18. gxf3 {0-1 (40) Einarsson,B (2175)-Vidarsson,J (2360) Hafnarfjordur 1996}) 11. Ng3 {[%emt 0:04:12]} Nbd7 {[%emt 0:09:24] The position is equal.} 12. d5 {[%emt 0:06:36]} (12. O-O $15) 12... Bg4 $17 {[%emt 0:00:13]} 13. f3 {[%emt 0:00:24]} (13. Qc2 $17) 13... exf3 $19 {[%emt 0:07:25]} 14. gxf3 {[%emt 0:00:09]} Bh3 {[%emt 0:00:38]} 15. e4 {[%emt 0:08:48]} h5 {[%emt 0:17:51]} (15... Ne5 $19 {Threatens to win with ...Nfd7.} 16. Qe2 Nfd7) 16. Rg1 $17 {[%emt 0:17:48]} h4 {[%emt 0:19:07]} (16... c6 $142 {And now ...cxd5 would win.} 17. Bf4 Qb6) 17. Ne2 {[%emt 0:00:34]} Ne5 $36 {[%emt 0:00:43][%mdl 2048] Black has some pressure.} 18. Nd4 {[%emt 0:04:59]} ({White has to play} 18. Nf4 $15 Qd7 19. Bb1) 18... c5 $19 {[%emt 0:03:14]} 19. dxc6 {[%emt 0:00:14]} Qa5 {[%emt 0:00:30]} ({Much less strong is} 19... Nxc6 20. Bg5 $14) 20. Qc2 {[%emt 0:14:31][%mdl 8192] [#]} (20. cxb7 $17 Rab8 21. Bd2 (21. Qb3 $2 Nxf3+ 22. Nxf3 Nxe4 $19)) 20... Nxf3+ $1 {[%emt 0:07:03][%mdl 512]} 21. Nxf3 {[%emt 0:00:07]} Rxe4+ {[%emt 0:00:07]} 22. Kd1 {[%emt 0:02:19]} Qf5 {[%emt 0:06:18]} 23. Qd3 {[%emt 0:12:48] Hoping for Rg5.} Ng4 {[%emt 0:05:48] White must now prevent ...Nf2+.} 24. cxb7 {[%emt 0:05:36]} Rae8 {[%emt 0:02:36] [#] ( -> ...Nf2+)} 25. Kd2 {[%emt 0:06:44]} Ne5 {[%emt 0:04:32]} 26. Nxe5 {[%emt 0:03:25]} Qf2+ {[%emt 0:00:09]} 27. Kd1 {[%emt 0:00:04]} Bg4+ {[%emt 0:00:08] Weighted Error Value: White=1.51/Black=0.31} 0-1

[Event "44th Chess Olympiad Open 2022"]
[Site "Chennai"]
[Date "2022.07.30"]
[Round "2.41"]
[White "Sebenik, Matej"]
[Black "Lee, Jun Hyeok"]
[Result "1-0"]
[ECO "A89"]
[WhiteElo "2512"]
[BlackElo "2390"]
[Annotator "TA"]
[PlyCount "51"]
[EventDate "2022.07.29"]
[EventType "team-tourn"]
[EventCountry "IND"]
[SourceTitle "playchess.com"]
[Source "ChessBase"]
[SourceQuality "1"]
[WhiteTeam "Slovenia"]
[BlackTeam "Korea"]
[WhiteTeamCountry "SLO"]
[BlackTeamCountry "KOR"]
[TimeControl "40/5400+30:1800+30"]

{[%evp 17,51,33,45,46,61,50,73,88,79,79,127,80,113,116,127,107,215,213,242,256,254,252,302,302,266,257,459,431,581,432,928,911,922,911,1193,1171]} 1. Nf3 {[%emt 0:00:07]} f5 {[%emt 0:01:24]} 2. c4 {[%emt 0:00:14]} Nf6 {[%emt 0:00:10]} 3. g3 {[%emt 0:00:13]} g6 {[%emt 0:00:32]} 4. Bg2 {[%emt 0:00:15]} Bg7 {[%emt 0:00:12]} 5. O-O {[%emt 0:00:20]} O-O {[%emt 0:00:24]} 6. d4 {[%emt 0:00:08]} d6 {[%emt 0:00:14]} 7. Nc3 {[%emt 0:00:08]} Nc6 {[%emt 0:01:16]} 8. d5 {[%emt 0:00:38]} Ne5 {[%emt 0:00:13]} 9. Qb3 {[%emt 0:00:21]} Ned7 {[%emt 0:03:50]} 10. Be3 {[%emt 0:01:12] [#] A89: Dutch Defence: Leningrad System: 5 Nf3 0-0 6 0-0 d6 7 Nc3 Nc6.} a5 $146 {[%emt 0:05:45]} ({Predecessor:} 10... Ng4 11. Bd4 Bxd4 12. Nxd4 Nc5 13. Qc2 e5 14. dxe6 c6 15. Rad1 Nxe6 16. Qd2 Qf6 17. Nxe6 Bxe6 18. Qxd6 Bxc4 {1-0 (57) Bassini,E (2221)-Bonnafous,M (1915) Cassis 2022}) 11. Rad1 {[%emt 0:02:43]} (11. Ng5 {looks sharper.} Ng4 12. Ne6 Nxe3 13. Na4) 11... Nc5 {[%emt 0:04:22]} 12. Bxc5 {[%emt 0:22:32] White is better.} dxc5 {[%emt 0:00:02]} 13. Ng5 {[%emt 0:00:06]} Rb8 {[%emt 0:10:43]} ({Black should try} 13... Qd6) 14. Rfe1 {[%emt 0:14:43]} (14. Qb5 $142) 14... Bh6 {[%emt 0:17:39]} 15. h4 {[%emt 0:11:32][%cal Bh2h4,Bh4g5][%mdl 32] 0x0.001681fd3bc8dp-1022s more active pieces. The black rooks are badly placed.} Ng4 {[%emt 0:05:47]} 16. Nb5 {[%emt 0:06:19]} f4 {[%emt 0:08:08] [#]} (16... Bd7 $16 {keeps fighting.}) 17. gxf4 $1 $18 {[%emt 0:08:34]} Rxf4 {[%emt 0:02:44] [#]} 18. Qg3 $1 {[%emt 0:00:59]} Qf8 {[%emt 0:04:35]} (18... Rxc4 $2 19. d6 cxd6 20. Bd5+ Kg7 21. Bxc4 $18) (18... Rxf2 $2 19. Bh3 $18) 19. Nxc7 {[%emt 0:04:40]} Bxg5 {[%emt 0:04:44]} (19... Rxf2 $2 20. Bf3 $18) 20. hxg5 {[%emt 0:00:04] Black must now prevent e3.} Ne5 {[%emt 0:12:33]} 21. b3 {[%emt 0:08:32]} ({Much less strong is} 21. e3 $6 Nf3+ 22. Kf1 Rf5 $16) 21... Qf5 $2 {[%emt 0:03:52]} (21... h5 {was worth a try.} 22. gxh6 Kh7) 22. f3 {[%emt 0:00:08] Threatens to win with d6. White is clearly winning.} h5 {[%emt 0:09:33]} 23. Bh3 {[%emt 0:09:17]} Ng4 {[%emt 0:01:24]} (23... h4 $142 24. Bxf5 hxg3) 24. d6 {[%emt 0:02:07]} exd6 {[%emt 0:01:50]} 25. Nd5 {[%emt 0:00:07] Ne7+ is the strong threat.} Qe5 {[%emt 0:00:33] Against Ne7+} 26. Qxf4 {[%emt 0:00:15] White took control after the opening.  Weighted Error Value: White=0.13 (very precise) /Black=0.52} 1-0

[Event "44th Chess Olympiad Open 2022"]
[Site "Chennai"]
[Date "2022.07.30"]
[Round "2.41"]
[White "Kwon, Sehyun"]
[Black "Subelj, Jan"]
[Result "0-1"]
[ECO "D11"]
[WhiteElo "2225"]
[BlackElo "2498"]
[Annotator "TA"]
[PlyCount "82"]
[EventDate "2022.07.29"]
[EventType "team-tourn"]
[EventCountry "IND"]
[SourceTitle "playchess.com"]
[Source "ChessBase"]
[SourceQuality "1"]
[WhiteTeam "Korea"]
[BlackTeam "Slovenia"]
[WhiteTeamCountry "KOR"]
[BlackTeamCountry "SLO"]
[TimeControl "40/5400+30:1800+30"]

{[%evp 11,82,0,4,0,0,0,0,0,15,-10,38,-8,-12,-38,-38,-60,-59,-52,-25,-28,0,-25,-29,-38,-8,-46,-27,-178,-170,-171,-176,-211,-209,-214,-213,-270,-270,-270,-269,-262,-262,-335,-335,-335,-335,-335,-332,-363,-335,-363,-348,-363,-363,-356,-348,-363,-356,-368,-349,-406,-406,-425,-406,-529,-529,-481,-428,-1003,-974,-1399,-1100,-2192,-2200]} 1. d4 {[%emt 0:00:25]} d5 {[%emt 0:00:30]} 2. Nf3 {[%emt 0:00:15]} Nf6 {[%emt 0:00:48]} 3. g3 {[%emt 0:00:36]} Bf5 {[%emt 0:01:01]} 4. Bg2 {[%emt 0:00:22]} e6 {[%emt 0:01:05]} 5. c4 {[%emt 0:00:25]} c6 {[%emt 0:00:44]} 6. Nc3 {[%emt 0:00:44]} h6 {[%emt 0:00:43]} 7. Qb3 {[%emt 0:01:01] is cutting edge theory. D11: Slav Defence: 3 Nf3 sidelines and 3...Nf6 4 e3 Bg4.} Qb6 {[%emt 0:00:36]} 8. c5 {[%emt 0:00:23]} Qxb3 {[%emt 0:01:27]} 9. axb3 {[%emt 0:00:07] The position is equal.} Na6 {[%emt 0:01:04]} 10. Ra4 {[%emt 0:20:19]} Bc2 {[%emt 0:04:41]} (10... Nd7 $11 {should be considered.}) 11. Ra3 {[%emt 0:04:52]} (11. Be3 $14) 11... Nd7 $11 {[%emt 0:22:34] [#]} 12. Bf4 $146 {[%emt 0:29:37]} ({Predecessor:} 12. O-O g5 13. Be3 Nc7 14. h4 gxh4 15. Nh2 Rg8 16. b4 a6 17. Bf4 O-O-O 18. Rc1 {½-½ (36) Khenkin,I (2605)-Michiels,B (2533) Germany 2016}) 12... f6 {[%emt 0:06:17]} 13. Bh3 {[%emt 0:06:41]} g5 {[%emt 0:10:19]} 14. Bd2 {[%emt 0:04:18]} e5 {[%emt 0:07:19]} 15. O-O {[%emt 0:05:35]} Bg6 {[%emt 0:00:50]} (15... h5 $5 {[%cal Rg5g4]} 16. Bxd7+ Kxd7 $11) 16. e3 {[%emt 0:10:57]} e4 {[%emt 0:14:51]} 17. Ne1 {[%emt 0:00:40][%cal Oa3a6]} h5 {[%emt 0:00:32]} 18. Rxa6 {[%emt 0:06:31]} bxa6 {[%emt 0:00:09]} 19. b4 $2 {[%emt 0:00:17] Now White is beyond hope.} (19. Nc2 $1 $11) 19... g4 $19 {[%emt 0:00:47]} 20. Bg2 {[%emt 0:00:08]} h4 {[%emt 0:00:09]} 21. gxh4 {[%emt 0:01:29]} Rxh4 {[%emt 0:03:26]} 22. Nc2 {[%emt 0:00:05] [#]} O-O-O $1 {[%emt 0:02:13]} 23. Na1 {[%emt 0:03:12]} Be7 {[%emt 0:00:17]} 24. Nb3 {[%emt 0:00:04]} Rdh8 {[%emt 0:00:07]} 25. Ra1 {[%emt 0:00:09] [#]} Nb8 {[%emt 0:00:05]} ({Inferior is} 25... Rxh2 26. Rxa6 Nb8 27. Rxa7 $14) 26. b5 {[%emt 0:00:52]} axb5 {[%emt 0:00:41]} (26... Rxh2 27. bxc6 Bf7 28. Na5 $17) 27. Rxa7 {[%emt 0:00:14]} Bd8 {[%emt 0:00:06]} ({Stronger than} 27... Bf8 28. Na5 $15) 28. Ne2 {[%emt 0:02:51]} Rxh2 {[%emt 0:00:54]} 29. Na5 {[%emt 0:01:17]} Bxa5 {[%emt 0:01:02]} 30. Rxa5 {[%emt 0:00:18]} Kb7 {[%emt 0:00:30]} 31. Ra1 {[%emt 0:00:41]} Nd7 {[%emt 0:00:53]} 32. Ba5 {[%emt 0:00:32]} R2h6 {[%emt 0:00:14]} 33. Nf4 {[%emt 0:00:19]} Bf7 {[%emt 0:00:40]} 34. Ne2 {[%emt 0:00:33]} Ra8 {[%emt 0:00:12]} 35. b4 {[%emt 0:00:27]} Nf8 {[%emt 0:00:21]} 36. Ng3 {[%emt 0:00:41]} Bg6 {[%emt 0:00:18] Inhibits Nf5.} 37. Bf1 {[%emt 0:00:31]} Ne6 {[%emt 0:00:20] Black is clearly winning.} 38. Ne2 {[%emt 0:00:26]} Ng5 {[%emt 0:01:20]} 39. Kg2 {[%emt 0:00:33]} (39. Bg2 $142) 39... Nf3 {[%emt 0:01:12][%cal Og4g3] Hoping for ...g3!} 40. Kg3 {[%emt 0:00:15]} Rh1 {[%emt 0:00:57] Threatens to win with ...Nh4.} 41. Kg2 {[%emt 0:02:29]} Rah8 {[%emt 0:01:55] Weighted Error Value: White=0.74/Black=0.13 (very precise)} 0-1

[Event "44th Chess Olympiad Open 2022"]
[Site "Chennai"]
[Date "2022.07.30"]
[Round "2.42"]
[White "Giron, Jorge Ernesto"]
[Black "Morovic Fernandez, Ivan"]
[Result "1/2-1/2"]
[ECO "C77"]
[WhiteElo "2288"]
[BlackElo "2489"]
[Annotator "TA"]
[PlyCount "106"]
[EventDate "2022.07.29"]
[EventType "team-tourn"]
[EventCountry "IND"]
[SourceTitle "playchess.com"]
[Source "ChessBase"]
[SourceQuality "1"]
[WhiteTeam "El Salvador"]
[BlackTeam "Chile"]
[WhiteTeamCountry "ESA"]
[BlackTeamCountry "CHI"]
[TimeControl "40/5400+30:1800+30"]

{[%evp 16,106,10,0,22,10,24,24,33,29,28,16,35,13,22,13,28,16,18,22,56,51,58,56,55,72,58,22,18,0,0,0,0,0,0,-11,-11,-12,-12,-29,-22,-22,-15,-22,-8,-6,-8,-47,0,0,0,0,0,0,0,0,0,0,21,0,8,9,8,0,0,0,0,0,0,0,0,0,0,0,0,0,0,0,0,0,0,0,0,0,0,0,0,0,0,0,0,0,0]} 1. e4 {[%emt 0:00:29]} e5 {[%emt 0:00:19]} 2. Nf3 {[%emt 0:00:09]} Nc6 {[%emt 0:00:09]} 3. Bb5 {[%emt 0:00:07][%cal Bf1b5,Bb5a4,Ba4b3,Bb3a2][%mdl 32]} a6 {[%emt 0:00:13]} 4. Ba4 {[%emt 0:00:10]} Nf6 {[%emt 0:00:38]} 5. O-O {[%emt 0:01:15]} Be7 {[%emt 0:01:22]} 6. d3 {[%emt 0:00:13]} b5 {[%emt 0:00:30]} 7. Bb3 {[%emt 0:00:07]} d6 {[%emt 0:00:10]} 8. a3 {[%emt 0:00:11]} O-O {[%emt 0:01:59]} 9. Nc3 {[%emt 0:00:09]} Rb8 {[%emt 0:04:02] C77: Ruy Lopez: 3...a6 4 Ba4 Nf6, unusual lines.} 10. Ba2 {[%emt 0:11:56] [#]} Qe8 $146 {[%emt 0:10:34]} ({Predecessor:} 10... b4 11. axb4 Nxb4 12. Bb1 c5 13. Ne2 a5 14. c3 Nc6 15. Ng3 Be6 16. Nd2 d5 17. exd5 Nxd5 {½-½ (25) Ponomariov,R (2636)-Kelires,A (2536) Terme Catez 2022}) 11. h3 {[%emt 0:02:05]} Bd8 {[%emt 0:05:39] White has an edge.} 12. Re1 {[%emt 0:01:51]} Ne7 {[%emt 0:12:30]} 13. b4 {[%emt 0:12:58]} Ng6 {[%emt 0:03:00]} 14. Ne2 {[%emt 0:09:34]} Be6 {[%emt 0:05:47]} 15. Ng3 {[%emt 0:03:29]} Nd7 {[%emt 0:05:49]} 16. Be3 {[%emt 0:04:09]} Bxa2 {[%emt 0:05:16]} 17. Rxa2 {[%emt 0:00:11]} Ne7 {[%emt 0:00:34]} 18. c4 {[%emt 0:20:21]} f5 {[%emt 0:02:19]} 19. exf5 {[%emt 0:00:28]} (19. Nxf5 {feels hotter.} Nxf5 20. exf5 Rxf5 21. Rc2) 19... Nxf5 {[%emt 0:00:06]} 20. Nxf5 {[%emt 0:00:55]} Rxf5 {[%emt 0:00:06]} 21. cxb5 {[%emt 0:08:43]} axb5 {[%emt 0:00:33]} 22. Qb3+ {[%emt 0:00:11]} (22. Qc2 {seems wilder.} Rf8 23. a4 bxa4 24. Rxa4 Nf6 25. Bd2) 22... Qf7 {[%emt 0:11:23]} 23. Qxf7+ {[%emt 0:04:32]} Rxf7 {[%emt 0:02:06]} 24. Rc1 {[%emt 0:00:23]} Nf6 {[%emt 0:03:16]} 25. Ng5 {[%emt 0:01:14]} Rd7 {[%emt 0:02:20]} 26. Ne4 {[%emt 0:08:14]} Nd5 {[%emt 0:03:33]} 27. Nc3 {[%emt 0:00:28]} Nxe3 {[%emt 0:05:39]} 28. fxe3 {[%emt 0:00:06]} d5 {[%emt 0:00:04]} 29. Kf2 {[%emt 0:06:42]} Bg5 {[%emt 0:03:21] [#] ...d4 is the strong threat.} 30. Ke2 {[%emt 0:00:15]} Rb6 {[%emt 0:08:14]} 31. Nd1 {[%emt 0:01:52]} Bd8 {[%emt 0:01:49]} (31... c6 $1 $15 {feels stronger.}) 32. Rac2 $11 {[%emt 0:01:50] The position is equal.} Ra6 {[%emt 0:00:27]} 33. Rc5 {[%emt 0:00:32]} Rxa3 {[%emt 0:01:02]} 34. R1c2 {[%emt 0:00:04] Prevents Ra2.} Rb3 {[%emt 0:01:35]} 35. Rxb5 {[%emt 0:00:03]} Be7 {[%emt 0:00:20] Prevents Rcc5.} 36. Rb7 {[%emt 0:00:42]} Bd6 {[%emt 0:00:41]} 37. Rb2 {[%emt 0:00:55]} Rxb2+ {[%emt 0:00:34]} 38. Nxb2 {[%emt 0:00:03][%mdl 4096] Endgame KRB-KRN} Kf7 {[%emt 0:00:03]} 39. e4 {[%emt 0:01:38]} dxe4 {[%emt 0:01:13]} 40. dxe4 {[%emt 0:00:05]} Ke6 {[%emt 0:00:22]} 41. Nd3 {[%emt 0:04:02]} Rd8 {[%emt 0:11:38]} 42. Ra7 {[%emt 0:01:18]} Rb8 {[%emt 0:02:45]} 43. Ra4 {[%emt 0:00:12]} h5 {[%emt 0:04:01]} 44. Kd2 {[%emt 0:09:41]} Rf8 {[%emt 0:02:21]} 45. Kc3 {[%emt 0:07:32]} Rf1 {[%emt 0:00:59]} 46. Kc4 {[%emt 0:00:28]} Rg1 {[%emt 0:02:05]} 47. Ra2 {[%emt 0:00:04]} g5 {[%emt 0:01:20]} 48. Rf2 {[%emt 0:01:38]} g4 {[%emt 0:00:49]} 49. hxg4 {[%emt 0:02:21]} hxg4 {[%emt 0:00:02]} 50. Kc3 {[%emt 0:02:19]} Kd7 {[%emt 0:02:26]} 51. Kc4 {[%emt 0:03:26]} Ke6 {[%emt 0:01:51]} 52. Kc3 {[%emt 0:00:06]} Kd7 {[%emt 0:02:39]} 53. Kc4 {[%emt 0:00:13]} Ke7 {[%emt 0:00:27] Weighted Error Value: White=0.06 (flawless) /Black=0.06 (flawless)} 1/2-1/2